bitfinex/quotes_ETHUSD_20241023
["timestamp","ask_amount","ask_price","bid_price","bid_amount"]
[1729703882100,13.76658015,2503.0,2502.1,3.99664]
[1729703882280,15.14323816,2502.9,2502.1,3.99664]
[1729703882489,15.14323816,2502.9,2501.9,3.99683]
[1729703882810,15.14323816,2502.9,2502.1,0.01]
[1729703883011,15.14323816,2502.9,2502.1,4.00651]
[1729703883192,15.14323816,2502.9,2502.2,3.99648]
[1729703883509,15.14323816,2502.9,2502.1,4.00651]
[1729703883510,15.14323816,2502.9,2502.3,3.99624]
[1729703883869,1.37665801,2502.9,2502.3,3.99621]
[1729703884074,1.37665801,2502.9,2502.4,3.99615]
[1729703884305,13.76658015,2503.1,2502.4,3.99601]
[1729703884469,13.76658015,2503.1,2502.5,7.99189]
[1729703884670,13.76658015,2503.1,2502.5,3.9959]
[1729703884871,13.76658015,2503.1,2502.5,0.01]
[1729703885119,1.5428,2503.6,2502.8,3.99543]
[1729703885273,1.5428,2503.6,2502.9,0.01]
[1729703885274,3.07373801,2503.6,2502.9,0.01]
[1729703885639,3.07373801,2503.6,2502.8,3.99551]
[1729703885774,1.5428,2503.6,2502.8,4.00551]
[1729703885976,1.5428,2503.6,2502.9,0.01]
[1729703886311,15.35198015,2504.0,2503.1,4.0049]
[1729703886616,19.34568015,2504.0,2502.9,4.01534]
[1729703886820,15.35198015,2504.0,2503.0,3.99511]
[1729703887001,1.53519802,2503.9,2502.9,4.01534]
[1729703887194,1.53519802,2503.9,2502.9,4.01526]
[1729703887712,4.53519802,2503.9,2502.9,4.01525]
[1729703887876,4.53519802,2503.9,2502.9,4.00525]
[1729703888071,4.53519802,2503.9,2503.0,0.01]
[1729703888072,0.41113297,2503.8,2503.0,0.01]
[1729703888276,0.41113297,2503.8,2502.9,4.00525]
[1729703888515,0.41113297,2503.8,2503.0,0.01]
[1729703889428,1.5854,2504.0,2503.0,0.85003828]
[1729703889596,1.5854,2504.0,2503.0,0.02]
[1729703889920,3.0,2503.9,2503.0,0.85003828]
[1729703890122,3.0,2503.9,2503.0,0.83003828]
[1729703890437,3.99529,2503.0,2502.2,0.02]
[1729703890584,13.76658015,2503.0,2502.2,0.01]
[1729703891022,13.76658015,2503.0,2502.1,3.99662]
[1729703891230,13.76658015,2503.0,2502.2,0.01]
[1729703891586,3.99545,2502.9,2502.3,0.82795037]
[1729703891822,13.76658015,2503.7,2502.3,0.82795037]
[1729703892133,9.32631771,2503.7,2502.8,0.82795037]
[1729703892298,13.32055771,2503.7,2502.8,0.82795037]
[1729703892632,27.08708786,2503.7,2502.9,0.01]
[1729703892785,17.76085015,2503.6,2502.8,0.82795037]
[1729703892989,17.76085015,2503.6,2502.9,0.01]
[1729703893194,3.9944,2503.5,2502.8,0.82795037]
[1729703893383,3.9944,2503.5,2502.7,0.83795037]
[1729703893800,3.9944,2503.5,2502.7,0.01]
[1729703894126,3.9944,2503.5,2502.7,0.82795037]
[1729703894327,3.9944,2503.5,2502.7,0.01]
[1729703894823,17.76082015,2503.6,2502.7,0.01]
[1729703895022,17.76082015,2503.6,2502.7,0.83795037]
[1729703895023,3.9944,2503.5,2502.7,0.83795037]
[1729703895225,13.76658015,2503.6,2502.8,4.00543]
[1729703895527,17.76086015,2503.6,2502.8,0.01]
[1729703896244,13.76658015,2503.6,2502.8,3.99551]
[1729703896788,13.76658015,2503.6,2502.9,3.99533]
[1729703897241,3.0,2503.6,2502.9,3.99535]
[1729703897543,13.76658015,2503.7,2502.9,3.99535]
[1729703897920,13.76658015,2503.7,2502.9,4.00535]
[1729703898137,13.76658015,2503.7,2503.1,3.99488]
[1729703898328,13.76658015,2503.9,2503.5,0.01]
[1729703898528,4.78566925,2503.8,2502.9,0.90784559]
[1729703898740,13.76658015,2503.9,2502.8,0.01]
[1729703898741,4.78566925,2503.5,2502.8,0.01]
[1729703899254,4.78566925,2503.2,2502.6,0.01]
[1729703899409,13.76658015,2503.2,2502.8,0.01]
[1729703899829,10.0630477,2503.5,2502.8,4.00551]
[1729703900034,10.0630477,2503.5,2502.8,0.02]
[1729703900305,4.78566925,2503.2,2502.6,4.83367037]
[1729703900504,16.25443972,2503.5,2502.6,0.83795037]
[1729703900705,11.46877047,2503.5,2502.7,0.01]
[1729703900937,11.46877047,2503.5,2502.9,3.99522]
[1729703901137,3.0,2503.7,2503.1,3.99501]
[1729703901448,3.0,2503.7,2503.0,4.00513]
[1729703901654,3.0,2503.7,2502.9,0.01]
[1729703902148,3.0,2503.7,2503.0,3.99513]
[1729703902305,1.15106993,2503.6,2503.0,3.99513]
[1729703902506,1.15106993,2503.6,2503.1,3.99496]
[1729703902719,4.78566925,2503.8,2503.1,4.00496]
[1729703902950,4.78566925,2503.8,2503.2,3.99487]
[1729703903191,4.78566925,2503.5,2502.8,0.01]
[1729703903510,3.99416,2503.7,2502.8,4.00537]
[1729703903731,1.27737893,2503.6,2502.9,3.99534]
[1729703904148,1.27737893,2503.6,2503.0,3.9952]
[1729703904347,1.27737893,2503.6,2503.1,3.99497]
[1729703904550,3.99385,2503.9,2503.2,3.9948]
[1729703904551,3.0,2503.9,2503.2,3.9948]
[1729703904864,6.99384,2503.9,2503.1,4.00496]
[1729703905015,3.0,2503.9,2503.1,0.02]
[1729703905354,3.99396,2503.8,2503.1,4.00501]
[1729703905553,3.9939,2503.9,2503.0,3.99508]
[1729703905554,0.798786,2503.7,2503.0,3.99508]
[1729703905760,3.99432,2503.6,2502.7,0.01]
[1729703905910,3.9948,2503.3,2502.5,7.01599]
[1729703906257,3.99481,2503.3,2502.7,0.01]
[1729703906464,4.78566925,2503.5,2502.5,4.01599]
[1729703906750,5.56401,2503.2,2502.5,4.00598]
[1729703906911,0.955882,2503.1,2502.5,4.01592]
[1729703907113,3.99521,2503.0,2502.3,4.00629]
[1729703907417,4.950922,2503.1,2502.5,0.01]
[1729703907756,4.950922,2503.1,2502.5,4.00599]
[1729703907757,0.955882,2503.1,2502.5,4.00599]
[1729703907913,4.78566925,2503.2,2502.7,3.99567]
[1729703908110,6.99473,2503.3,2502.7,3.99567]
[1729703908339,6.99473,2503.3,2502.5,4.00592]
[1729703908340,8.78064925,2503.2,2502.5,4.00592]
[1729703908553,4.78566925,2503.2,2502.5,4.00592]
[1729703908725,4.78566925,2503.2,2502.6,3.99582]
[1729703908914,8.78056925,2503.2,2502.5,4.00592]
[1729703909119,4.78566925,2503.2,2502.5,8.00185]
[1729703909434,4.78566925,2503.2,2502.6,3.99575]
[1729703909626,8.78054925,2503.2,2502.5,0.01]
[1729703910349,8.78054925,2503.2,2502.5,4.00591]
[1729703911159,4.78566925,2503.2,2502.5,0.01]
[1729703911313,4.78566925,2503.2,2502.6,3.99583]
[1729703912313,3.0,2503.3,2502.7,3.99559]
[1729703912514,6.99472,2503.3,2502.5,4.00591]
[1729703912726,3.0,2503.3,2502.6,0.01]
[1729703912928,3.0,2503.3,2502.5,4.00591]
[1729703913151,8.78062925,2503.2,2502.5,0.01]
[1729703913647,4.78566925,2503.2,2502.7,3.99567]
[1729703913858,6.99458,2503.4,2502.7,3.99567]
[1729703914019,3.0,2503.4,2502.7,3.99557]
[1729703914352,3.0,2503.4,2502.5,0.01]
[1729703914353,3.0,2503.4,2502.8,3.99542]
[1729703914744,10.41997925,2503.5,2502.7,0.01]
[1729703914745,6.42556925,2503.5,2503.0,3.99513]
[1729703915057,7.80926687,2503.5,2503.0,3.99513]
[1729703915255,0.41720692,2503.7,2503.1,3.995]
[1729703915553,0.41720692,2503.7,2503.2,3.99487]
[1729703915788,14.84871695,2503.8,2503.2,3.99487]
[1729703915993,1.5489,2503.9,2503.1,4.015]
[1729703916278,1.5489,2503.9,2503.4,3.99454]
[1729703916952,4.78566925,2503.8,2503.1,4.01493]
[1729703917184,3.99416,2503.7,2503.1,0.01]
[1729703917480,8.77963925,2503.8,2503.2,0.01]
[1729703917886,4.78566925,2503.8,2503.2,4.00482]
[1729703918047,5.81850317,2503.8,2503.3,3.99471]
[1729703918245,5.81850317,2503.8,2503.2,0.01]
[1729703918468,4.78566925,2503.5,2502.8,1.592]
[1729703918745,4.78566925,2503.5,2502.9,4.00536]
[1729703918945,4.45566925,2503.5,2502.9,4.00536]
[1729703919277,0.84499893,2503.4,2502.9,4.00531]
[1729703919786,0.84499893,2503.4,2502.9,4.00527]
[1729703920345,0.64499893,2503.4,2502.9,0.01]
[1729703920591,3.99542,2502.9,2502.7,0.82795037]
[1729703920754,14.84871695,2502.9,2502.3,0.83795037]
[1729703920953,14.84871695,2502.9,2502.3,4.00625]
[1729703920954,15.92315801,2502.9,2502.3,4.00625]
[1729703921188,15.92315801,2502.9,2502.3,0.83795037]
[1729703921489,15.92315801,2502.9,2502.4,0.82795037]
[1729703921658,10.0630477,2502.8,2502.4,0.82795037]
[1729703921863,10.0630477,2502.8,2502.3,0.83795037]
[1729703922062,10.70804663,2502.8,2502.3,4.83423037]
[1729703922589,10.70804663,2502.8,2502.4,0.82795037]
[1729703922743,10.0630477,2502.8,2502.4,0.82795037]
[1729703922947,10.0630477,2502.8,2502.4,4.82410037]
[1729703923189,3.99528,2503.0,2502.3,4.83423037]
[1729703923419,3.99523,2503.0,2502.3,4.82423037]
[1729703923636,6.99506,2503.1,2502.4,8.82021037]
[1729703923637,3.0,2503.1,2502.4,8.82021037]
[1729703923779,3.0,2503.1,2502.6,1.5288]
[1729703923984,18.84325695,2503.5,2502.8,3.99544]
[1729703924185,18.84325695,2503.5,2502.8,4.82339037]
[1729703924380,18.84325695,2503.5,2502.8,8.81883037]
[1729703924691,3.99464,2503.4,2502.8,0.82795037]
[1729703924896,14.84871695,2503.5,2502.9,3.99535]
[1729703925226,14.84871695,2503.5,2502.8,4.82336037]
[1729703925227,3.99457,2503.4,2502.8,0.82795037]
[1729703925386,3.99457,2503.4,2502.9,0.82795037]
[1729703925587,3.99457,2503.4,2502.8,0.82795037]
[1729703925927,18.84326695,2503.5,2502.8,0.82795037]
[1729703925928,4.78566925,2503.2,2502.8,0.82795037]
[1729703926085,0.47856693,2503.1,2502.7,0.82795037]
[1729703926429,0.47856693,2503.1,2502.6,0.83795037]
[1729703926608,0.47856693,2503.1,2502.7,0.82795037]
[1729703926814,0.47856693,2503.1,2502.6,0.83795037]
[1729703927042,0.47856693,2503.1,2502.7,0.82795037]
[1729703927239,0.47856693,2503.1,2502.6,4.83378037]
[1729703927541,0.47856693,2503.1,2502.6,0.83795037]
[1729703927841,0.47856693,2503.1,2502.7,0.82795037]
[1729703928336,4.78566925,2503.2,2502.7,4.82353037]
[1729703928536,3.0,2503.4,2502.8,3.9955]
[1729703928741,3.0,2503.4,2502.8,4.82345037]
[1729703928942,3.0,2503.4,2502.8,3.9955]
[1729703929602,6.99456,2503.4,2502.8,3.9955]
[1729703929806,3.0,2503.4,2503.3,0.2]
[1729703929999,3.0,2503.6,2503.3,0.2]
[1729703930231,6.99432,2503.6,2503.3,0.2]
[1729703930414,3.0,2503.7,2503.3,0.2]
[1729703931010,4.78566925,2503.5,2503.3,0.2]
[1729703931339,5.56423618,2503.5,2503.3,0.2]
[1729703933838,3.99456,2503.4,2503.3,0.2]
[1729703934043,10.0630477,2503.4,2503.3,0.2]
[1729703934839,14.0576077,2503.4,2503.3,0.2]
[1729703935246,15.7122077,2503.4,2503.3,0.2]
[1729703935413,16.65308076,2503.4,2503.3,0.2]
[1729703938017,0.94087306,2503.4,2503.3,0.2]
[1729703938220,4.78566925,2503.5,2503.3,0.2]
[1729703938415,8.64392,2503.7,2503.3,0.2]
[1729703938920,18.7069677,2503.7,2503.3,0.2]
[1729703939122,14.7128477,2503.7,2503.3,0.2]
[1729703940354,8.78015925,2503.5,2503.3,0.2]
[1729703940545,1.27744093,2503.4,2503.3,0.2]
[1729703941565,4.78566925,2503.5,2503.3,0.2]
[1729703943571,3.99456,2503.4,2503.3,0.2]
[1729703943777,4.78566925,2503.5,2503.3,0.2]
[1729703944080,8.78015925,2503.5,2503.3,0.2]
[1729703944432,3.99456,2503.4,2503.3,0.2]
[1729703944657,20.46537963,2503.4,2503.3,0.2]
[1729703944855,20.46537963,2503.4,2502.0,20.82795037]
[1729703944856,3.99596,2502.6,2502.0,20.82795037]
[1729703945055,3.99664,2502.1,2502.0,20.0]
[1729703945260,8.78185925,2502.4,2502.0,20.0]
[1729703945473,5.22763731,2502.4,2502.0,20.0]
[1729703945638,10.0630477,2502.5,2502.0,20.0]
[1729703946376,10.0630477,2502.5,2502.0,23.99678]
[1729703946574,10.0630477,2502.5,2502.0,20.0]
[1729703947173,4.78566925,2502.4,2502.0,20.0]
[1729703948837,10.0630477,2502.4,2502.0,20.0]
[1729703949067,10.0630477,2502.4,2502.1,3.99656]
[1729703949297,3.99446,2503.5,2502.8,0.01]
[1729703949573,3.99446,2503.5,2502.7,0.01]
[1729703949574,1.5383,2503.0,2502.7,0.01]
[1729703949777,1.5383,2503.0,2502.6,0.01]
[1729703949977,4.78566925,2502.9,2502.2,1.5271]
[1729703950136,18.84409695,2502.9,2502.2,1.5271]
[1729703950474,14.84871695,2502.9,2502.2,1.5071]
[1729703950675,14.84871695,2502.9,2502.2,0.01]
[1729703950676,14.0587077,2502.8,2502.2,0.01]
[1729703950876,8.78158925,2502.6,2502.0,20.0]
[1729703951077,9.86863232,2502.6,2502.0,20.0]
[1729703951288,3.99608,2502.5,2502.0,20.01]
[1729703951575,5.87271232,2502.6,2502.0,20.0]
[1729703951788,4.78566925,2502.3,2502.0,20.0]
[1729703951938,14.84871695,2502.3,2502.0,20.0]
[1729703952138,15.48111387,2502.3,2502.0,20.0]
[1729703952352,19.47744387,2502.3,2502.0,20.0]
[1729703953078,3.99664,2502.1,2502.0,20.0]
[1729703953507,3.99664,2502.1,2501.3,0.01]
[1729703953717,4.78566925,2501.8,2501.3,0.01]
[1729703953914,5.87271232,2501.8,2501.3,0.01]
[1729703955606,1.08704307,2501.8,2501.3,0.01]
[1729703955900,1.08704307,2501.8,2501.3,4.0079]
[1729703956519,3.99757,2501.6,2500.9,0.01]
[1729703956664,0.399757,2501.5,2501.1,0.01]
[1729703957016,10.4628047,2501.5,2501.1,0.01]
[1729703957764,10.0630477,2501.5,2501.1,0.02]
[1729703957991,10.0630477,2501.5,2501.1,4.0181]
[1729703958370,10.0630477,2501.5,2501.2,3.99805]
[1729703958719,10.0630477,2501.5,2501.4,3.99776]
[1729703959385,10.0630477,2502.0,2501.6,3.99744]
[1729703959708,10.0630477,2502.0,2501.5,4.01747]
[1729703960284,15.5771677,2502.5,2501.9,3.99696]
[1729703960615,3.99633,2502.3,2501.7,4.00719]
[1729703960975,3.99633,2502.3,2501.7,0.01]
[1729703962085,3.99633,2502.3,2501.7,4.00726]
[1729703962280,3.99633,2502.3,2501.7,0.01]
[1729703962491,18.84498695,2502.4,2501.7,0.01]
[1729703962667,3.9964,2502.3,2501.7,0.01]
[1729703963223,3.9964,2502.3,2501.6,3.99743]
[1729703963387,3.9964,2502.3,2501.8,0.01]
[1729703963772,14.0596177,2502.2,2501.8,0.01]
[1729703964005,14.0596177,2502.2,2501.5,4.01759]
[1729703964173,14.0596177,2502.2,2501.8,0.01]
[1729703964810,3.99667,2502.1,2501.5,0.01]
[1729703965010,3.99667,2502.1,2501.8,0.01]
[1729703965220,3.99672,2502.1,2501.5,0.02]
[1729703965513,14.0596077,2502.2,2501.5,4.01749]
[1729703965711,3.99667,2502.1,2501.5,4.01749]
[1729703965876,3.9968,2502.0,2501.5,0.01]
[1729703966385,3.99783,2501.4,2500.7,4.0088]
[1729703966588,0.399783,2501.3,2500.9,0.01]
[1729703966902,0.399783,2501.3,2500.9,4.0084]
[1729703966903,10.0630477,2501.3,2500.9,4.0084]
[1729703967075,10.0630477,2501.3,2500.8,0.01]
[1729703967275,3.99632,2502.3,2500.5,0.01]
[1729703967276,8.78380925,2501.2,2500.5,0.01]
[1729703967520,8.78380925,2501.2,2500.7,0.01]
[1729703967817,8.78380925,2501.2,2500.4,4.00933]
[1729703967818,3.99793,2501.3,2500.6,4.00889]
[1729703968013,1.262121,2501.3,2500.6,4.00889]
[1729703968174,1.262121,2501.3,2500.6,8.0078]
[1729703968412,10.0630477,2501.7,2501.0,4.00828]
[1729703968596,10.7427897,2501.6,2501.0,0.01]
[1729703968797,10.7427897,2501.6,2501.0,4.00839]
[1729703969196,10.7427897,2501.6,2501.0,0.01]
[1729703969398,14.7403497,2501.6,2501.0,0.01]
[1729703969639,10.7427897,2501.6,2501.0,4.00837]
[1729703969844,3.99764,2501.5,2501.0,0.01]
[1729703970209,10.7427897,2501.6,2501.0,0.01]
[1729703970749,14.7403697,2501.6,2501.0,0.02]
[1729703971245,10.7427897,2501.6,2501.0,0.01]
[1729703971451,10.7427897,2501.6,2500.9,3.99849]
[1729703971599,10.7427897,2501.6,2501.0,4.00839]
[1729703971802,14.7403497,2501.6,2501.0,4.00839]
[1729703972331,14.7403497,2501.6,2500.8,4.0086]
[1729703972513,24.8033774,2501.6,2501.0,0.01]
[1729703972716,20.8058374,2501.6,2501.0,0.01]
[1729703972911,20.8058374,2501.6,2501.0,4.00837]
[1729703973158,16.8083174,2501.6,2501.0,4.01837]
[1729703973454,20.8057574,2501.6,2501.0,4.01837]
[1729703973638,16.8083174,2501.6,2501.0,4.01837]
[1729703973954,14.0605077,2501.6,2501.0,4.420207]
[1729703974364,10.0630477,2501.6,2501.1,3.99813]
[1729703974559,10.0630477,2501.6,2501.0,4.420207]
[1729703974717,10.0630477,2501.6,2501.0,8.418507]
[1729703974718,14.0604977,2501.6,2501.0,8.418507]
[1729703974922,14.0604977,2501.6,2501.0,4.420137]
[1729703975255,14.0604977,2501.6,2501.0,8.418427]
[1729703975460,14.0604977,2501.6,2501.0,4.420127]
[1729703975967,14.0604977,2501.6,2501.0,8.418447]
[1729703976121,14.0604977,2501.6,2501.1,3.99823]
[1729703976460,14.0604977,2501.6,2501.2,0.01]
[1729703977252,10.0630477,2501.6,2501.2,0.02]
[1729703977462,5.63071,2502.2,2501.6,3.99742]
[1729703977763,17.8049674,2502.1,2501.5,4.00758]
[1729703978116,10.0630477,2502.1,2501.7,3.99727]
[1729703978528,10.0630477,2502.1,2501.8,0.01]
[1729703978823,10.0630477,2502.1,2501.8,4.00705]
[1729703979645,10.0630477,2502.1,2501.8,0.01]
[1729703980035,14.0596977,2502.1,2501.8,0.01]
[1729703980958,14.0596977,2502.1,2501.5,0.01]
[1729703980959,3.99744,2501.6,2501.5,0.01]
[1729703981263,3.99729,2501.7,2501.5,0.01]
[1729703981859,3.99775,2501.5,2501.4,0.01]
[1729703982427,9.3008597,2501.9,2501.4,0.01]
[1729703982428,3.9975,2501.6,2501.4,0.01]
[1729703982729,3.99751,2501.6,2501.4,0.01]
[1729703982936,3.99772,2501.5,2501.2,0.02]
[1729703983145,3.99806,2501.3,2501.0,1.5217]
[1729703983315,3.99834,2501.1,2500.8,0.02]
[1729703983524,3.99847,2501.0,2500.8,0.01]
[1729703983718,3.99843,2501.0,2500.8,0.01]
[1729703984734,3.99824,2501.1,2500.8,0.01]
[1729703984918,15.6139277,2501.3,2500.8,0.01]
[1729703985261,15.6138877,2501.3,2500.9,0.01]
[1729703985630,14.0609877,2501.3,2500.9,0.01]
[1729703985937,10.0630477,2501.3,2501.1,0.01]
[1729703986265,14.0609977,2501.3,2501.1,0.01]
[1729703986423,10.0630477,2501.3,2501.1,0.01]
[1729703986618,10.0630477,2501.3,2501.1,0.02]
[1729703986927,10.0630477,2501.3,2501.1,0.821686]
[1729703987470,10.0630477,2501.6,2501.3,0.01]
[1729703988426,10.0630477,2501.8,2501.5,0.01]
[1729703988626,3.99698,2501.9,2501.5,0.01]
[1729703989047,14.0599277,2502.0,2501.5,0.01]
[1729703989253,3.99712,2501.8,2501.5,0.01]
[1729703989524,3.99728,2501.7,2501.4,0.01]
[1729703989821,5.2658697,2501.5,2501.0,0.01]
[1729703990035,3.99798,2501.3,2501.0,0.01]
[1729703990265,3.99798,2501.3,2501.2,0.01]
[1729703990574,3.99784,2501.4,2501.2,0.01]
[1729703991428,3.99779,2501.4,2501.2,0.01]
[1729703992423,3.99792,2501.3,2501.2,0.01]
[1729703993527,3.99779,2501.4,2501.2,0.01]
[1729703993771,7.99565,2501.4,2501.2,0.01]
[1729703995780,10.0630477,2501.6,2501.4,1.5351]
[1729703995943,10.0630477,2501.6,2501.4,5.53277]
[1729703996842,10.0630477,2501.6,2501.4,1.5251]
[1729703997044,3.99768,2501.5,2501.2,0.01]
[1729703997383,10.0630477,2501.6,2501.4,0.01]
[1729703997739,14.0604877,2501.6,2501.4,0.01]
[1729703997940,18.0580677,2501.6,2501.4,0.01]
[1729703998140,14.0604877,2501.6,2501.4,0.01]
[1729703998485,10.0630477,2501.7,2501.4,4.01772]
[1729703998657,3.99687,2502.0,2501.7,0.01]
[1729703998865,3.7452697,2502.2,2501.7,0.01]
[1729703999187,3.99719,2501.8,2501.7,0.01]
[1729703999387,7.7418597,2502.2,2501.7,0.01]
[1729703999388,3.99696,2501.9,2501.7,0.01]
[1729703999543,3.99648,2502.2,2501.7,0.01]
[1729703999886,14.0594277,2502.3,2502.0,0.01]
[1729704000458,10.0630477,2502.3,2502.0,0.01]
[1729704000673,14.0593677,2502.3,2502.0,0.01]
[1729704001987,14.0593677,2502.3,2502.1,0.01]
[1729704002496,14.0593677,2502.3,2501.8,0.01]
[1729704002497,3.9967,2502.1,2502.0,0.01]
[1729704002649,3.9967,2502.1,2501.9,0.01]
[1729704002992,3.9967,2502.1,2501.6,5.60081]
[1729704002993,3.99711,2501.9,2501.6,0.01]
[1729704003284,3.99711,2501.9,2501.5,0.01]
[1729704003285,19.3097374,2501.8,2501.1,0.01]
[1729704003587,10.0630477,2501.7,2501.3,0.02]
[1729704003791,10.0630477,2501.7,2501.6,0.01]
[1729704003963,14.0603377,2501.7,2501.6,0.01]
[1729704004294,14.0603377,2501.7,2501.3,0.02]
[1729704004586,10.0630477,2501.7,2501.5,0.01]
[1729704004945,10.0630477,2501.7,2501.6,4.00744]
[1729704005143,10.0630477,2501.7,2501.6,1.5261]
[1729704005770,10.0630477,2501.7,2501.6,0.01]
[1729704008098,3.99697,2501.9,2501.6,0.01]
[1729704009388,3.99658,2502.2,2501.8,0.01]
[1729704009734,14.0593177,2502.4,2502.0,0.02]
[1729704010073,15.7075277,2502.5,2502.0,0.02]
[1729704010309,14.0591277,2502.5,2502.0,4.00676]
[1729704010613,3.99616,2502.4,2502.0,0.01]
[1729704010777,3.99616,2502.4,2502.3,0.01]
[1729704011480,10.0630477,2502.5,2501.9,0.01]
[1729704011481,3.99636,2502.3,2501.9,0.01]
[1729704011683,7.7416297,2502.3,2502.0,0.01]
[1729704011885,7.99279,2502.3,2502.0,0.01]
[1729704012700,3.99636,2502.3,2502.0,0.01]
[1729704012909,3.99649,2502.2,2502.0,0.01]
[1729704013374,13.8083174,2502.5,2502.2,0.01]
[1729704013375,18.0552277,2502.5,2502.2,0.01]
[1729704013575,14.0591277,2502.5,2502.2,0.01]
[1729704013776,18.0552077,2502.5,2502.2,0.01]
[1729704014014,3.99608,2502.5,2502.2,0.01]
[1729704014703,10.0630477,2502.8,2502.3,0.01]
[1729704014874,10.0630477,2502.8,2502.2,0.01]
[1729704014875,3.9961,2502.5,2502.2,0.01]
[1729704015222,3.7452697,2502.7,2502.3,0.01]
[1729704015223,7.7410597,2502.7,2502.3,0.01]
[1729704015373,11.7368797,2502.7,2502.3,0.01]
[1729704015573,3.99588,2502.6,2502.3,0.01]
[1729704015923,7.7410597,2502.7,2502.3,0.01]
[1729704016073,3.99594,2502.6,2502.3,0.01]
[1729704016522,3.99623,2502.4,2502.2,0.01]
[1729704016821,3.7452697,2502.5,2502.2,0.01]
[1729704016822,7.7413897,2502.5,2502.2,0.01]
[1729704016988,7.7412997,2502.5,2502.2,0.01]
[1729704017202,3.99618,2502.4,2502.2,0.01]
[1729704017703,3.7452697,2502.5,2502.2,0.01]
[1729704017903,10.0630477,2502.8,2502.6,0.01]
[1729704018228,10.0630477,2503.0,2502.7,0.01]
[1729704018445,10.0630477,2503.0,2502.8,0.01]
[1729704018806,14.0583577,2503.0,2502.7,0.01]
[1729704019003,3.99545,2502.9,2502.7,0.01]
[1729704019831,10.0630477,2503.0,2502.7,0.02]
[1729704019832,14.0582577,2503.0,2502.7,0.02]
[1729704020051,3.99536,2502.9,2502.7,0.02]
[1729704020329,3.99562,2502.8,2502.5,0.01]
[1729704020534,10.0630477,2503.0,2502.7,0.01]
[1729704020739,14.0582777,2503.0,2502.8,0.01]
[1729704021029,3.99536,2502.9,2502.7,0.01]
[1729704021441,10.0630477,2503.0,2502.8,0.01]
[1729704021590,3.99544,2502.9,2502.7,0.01]
[1729704021789,3.99536,2502.9,2502.7,0.01]
[1729704022036,7.99084,2502.9,2502.7,0.01]
[1729704022451,3.99584,2502.6,2502.5,0.01]
[1729704022633,3.9957,2502.7,2502.5,0.01]
[1729704022833,3.996,2502.5,2502.4,0.01]
[1729704023760,3.996,2502.5,2502.3,0.01]
[1729704023761,3.99616,2502.4,2502.3,0.01]
[1729704024121,3.99616,2502.4,2502.2,0.01]
[1729704024122,3.99639,2502.3,2502.1,0.02]
[1729704024328,3.99648,2502.2,2502.1,0.01]
[1729704024962,3.99638,2502.3,2502.1,0.02]
[1729704026739,3.99638,2502.3,2502.2,0.01]
[1729704027053,3.99638,2502.3,2501.9,0.01]
[1729704027054,3.99648,2502.2,2501.9,0.01]
[1729704027258,3.99648,2502.2,2502.0,0.01]
[1729704027632,3.99664,2502.1,2501.9,0.01]
[1729704027979,3.99664,2502.1,2501.8,0.01]
[1729704027980,3.99667,2502.1,2501.8,0.01]
[1729704028269,3.99667,2502.1,2501.7,0.02]
[1729704028430,3.99667,2502.1,2502.0,0.01]
[1729704029281,3.99635,2502.3,2502.0,0.02]
[1729704030036,3.99659,2502.2,2502.0,0.02]
[1729704030236,3.99643,2502.3,2502.0,0.02]
[1729704030427,7.9929,2502.3,2502.0,0.02]
[1729704030635,3.99655,2502.2,2502.0,0.02]
[1729704031533,10.0630477,2502.4,2502.0,0.02]
[1729704031766,3.99619,2502.4,2502.2,0.01]
[1729704032149,0.06978758,2502.3,2502.2,0.01]
[1729704032348,0.06978758,2502.3,2502.2,0.02]
[1729704032548,0.06978758,2502.3,2502.2,5.59288]
[1729704032754,0.06978758,2502.3,2502.2,6.152168]
[1729704033137,0.06978758,2502.3,2502.2,6.23209046]
[1729704033338,0.06978758,2502.3,2502.2,6.152168]
[1729704033902,7.58e-06,2502.3,2502.2,9.78208282]
[1729704034093,10.0630477,2503.7,2503.6,0.01]
[1729704034241,1.5859,2503.8,2503.6,0.01]
[1729704034242,3.9939,2503.9,2503.6,0.01]
[1729704034583,7.98773,2503.9,2503.6,0.02]
[1729704034767,10.0630477,2504.2,2504.0,0.02]
[1729704035142,10.0630477,2504.2,2504.0,0.01]
[1729704035342,14.0564177,2504.2,2504.0,0.01]
[1729704035687,3.99368,2504.0,2503.8,0.02]
[1729704036340,3.99376,2503.9,2503.8,0.02]
[1729704037682,3.99376,2503.9,2503.8,0.01]
[1729704038388,10.0630477,2504.2,2504.0,0.01]
[1729704038389,14.0564477,2504.2,2504.0,0.01]
[1729704039083,10.0630477,2504.2,2504.1,0.01]
[1729704039272,10.0630477,2504.2,2504.1,0.971069]
[1729704040358,10.0630477,2504.2,2504.1,0.01]
[1729704040854,3.99298,2504.4,2504.1,0.01]
[1729704041069,3.99329,2504.2,2504.1,0.01]
[1729704043315,7.98636,2504.3,2504.1,0.01]
[1729704043596,3.99329,2504.2,2504.1,0.01]
[1729704044003,15.4412174,2504.6,2504.1,0.01]
[1729704044205,3.99322,2504.3,2504.1,0.01]
[1729704044706,3.99299,2504.4,2504.3,0.01]
[1729704045002,3.99322,2504.3,2504.1,0.01]
[1729704045997,3.99297,2504.4,2504.3,0.01]
[1729704046199,7.98575,2504.5,2504.3,0.01]
[1729704046373,3.99297,2504.4,2504.3,0.01]